Cogmind - Beta 10.2 @@@ ROGUE MODE // 2021.05.06 @ 14:25:23 Player: Teratos Result: Self-destructed Performance ------------- Evolutions (1) 500 Regions Visited (2) 400 Robots Destroyed (29) 145 Value Destroyed (546) 546 Prototype IDs (0) 0 Alien Tech Used (0) 0 Bonus (0) 0 TOTAL SCORE: 1591 Bonus ------- None Cogmind --------- Core Integrity 238/400 Matter 300/300 Energy 100/100 System Corruption 0% Temperature Cool (6) Movement Core (50) Location -9/Materials Parts ------- > --- POWER (1) -------- (None) > --- PROPULSION (2) --- (None) > --- UTILITY (2) ------ (None) > --- WEAPON (4) ------- (None) > --- INVENTORY (4) ---- (None) Peak State ------------ > --- POWER ------------ Light Ion Engine > --- PROPULSION ------- Light Treads Light Treads > --- UTILITY ---------- Improved Heat Sink Light Armor Plating > --- WEAPON ----------- Small Laser Beam Rifle Light EM Pulse Cannon > --- INVENTORY -------- (None) [Rating: 12] Favorites ----------- Power Light Ion Engine Engine Light Ion Engine Propulsion Light Treads Treads Light Treads Utility Light Armor Plating Device Improved Heat Sink Processor Signal Interpreter Protection Light Armor Plating Weapon Beam Rifle Energy Gun Beam Rifle Energy Cannon Light EM Pulse Cannon Ballistic Gun Assault Rifle Build | -11 -10 -9 ------- Run | Scr Mat Mat Slots Evolved 2 | . . 2 Power . | . . . Propulsion . | . . . Utility . | . . . Weapon 2 | . . 2 Parts Attached 20 | 5 1 14 Power 2 | 1 . 1 Engine 2 | 1 . 1 Core . | . . . Reactor . | . . . Propulsion 5 | 2 . 3 Treads 5 | 2 . 3 Leg . | . . . Wheel . | . . . Hover . | . . . Flight . | . . . Utility 6 | . . 6 Device 3 | . . 3 Storage . | . . . Processor 1 | . . 1 Hackware . | . . . Protection 2 | . . 2 Artifact . | . . . Weapon 7 | 2 1 4 Energy Gun 4 | 1 1 2 Energy Cannon 1 | . . 1 Ballistic Gun 2 | 1 . 1 Ballistic Cannon . | . . . Launcher . | . . . Special Weapon . | . . . Impact Weapon . | . . . Slashing Weapon . | . . . Piercing Weapon . | . . . Special Melee Weapon . | . . . Unidentified Prototypes . | . . . Parts Lost 16 | . 1 15 Power 2 | . . 2 Propulsion 4 | . . 4 Utility 3 | . . 3 Weapon 7 | . 1 6 Highest Loss Streak 5 | . 1 5 Average Slot Usage (%) 68 | . 69 68 Engine 8 | . 14 6 Treads 21 | . 28 19 Device 6 | . . 9 Protection 5 | . . 8 Energy Gun 13 | . 12 14 Energy Cannon 1 | . . 2 Ballistic Gun 9 | . 14 7 Naked Turns 2 | . . 2 Heaviest Build 15 | 7 7 15 Greatest Support 40 | 40 40 40 Greatest Overweight (x) 3 | . . 3 Average Overweight (x) . | . . . Largest Inventory Capacity 4 | 4 4 4 Average Capacity 4 | 4 4 4 Most Carried 1 | . . 1 Average Carried . | . . . Final Capacity 4 | 4 4 4 Final Carried . | . . . Class Distribution -------------------- 43% | Mutant 33% | Scavenger-Mutant 12% | Scavenger-Tank 5% | Skirmisher 5% | Tank Dominant Class ---------------- Mutant | -10/Materials Scavenger-Mutant | -9/Materials Resources | -11 -10 -9 ----------- Run | Scr Mat Mat Matter Collected 599 | 107 152 340 Remotely . | . . . Salvage Created 956 | . 364 592 Parts 55 | . 26 29 Haulers Intercepted 1 | . 1 . Recyclers Shooed 5 | . 2 3 Parts Field Recycled . | . . . Retrieved Matter . | . . . Parts Self-Destructed . | . . . Prevented . | . . . Kills | -11 -10 -9 ------- Run | Scr Mat Mat Combat Hostiles Destroyed 22 | . 11 11 Guns 21 | . 11 10 Classes Destroyed 8 | . 5 3 Worker 1 | . 1 . Tunneler 1 | . . 1 Hauler 1 | . 1 . Recycler 2 | . 1 1 Watcher 2 | . . 2 Swarmer 13 | . 9 4 Grunt 6 | . 2 4 Sentry 3 | . . 3 Best Kill Streak 7 | . 7 4 Combat Bots Only 6 | . 6 3 Max Kills in Single Turn 2 | . 2 2 Gunslinging 1 | . 1 1 Exploded . | . . . Melee . | . . . Uniques/NPCs Destroyed . | . . . Combat | -11 -10 -9 -------- Run | Scr Mat Mat Damage Taken 1564 | . 459 1105 Core 264 | . 102 162 Absorbed by Shields . | . . . Core Remaining (%) 79 | 100 59 . Volleys Fired 106 | . 39 67 Largest 3 | . 2 3 Hottest 152 | . 70 152 Shots Fired 201 | . 63 138 Gun 188 | . 63 125 Cannon 13 | . . 13 Launcher . | . . . Special . | . . . Kinetic 83 | . 39 44 Thermal 105 | . 24 81 Explosive . | . . . Electromagnetic 13 | . . 13 Robot Hit Streak 24 | . 5 24 Robot Miss Streak 6 | . 5 6 Penetration Max . | . . . Secondary Targets 6 | . 3 3 Max Gunslinging Chain 1 | . 1 1 Shots Hit Robots 131 | . 36 95 Core Hits 44 | . 19 25 Critical Hits 2 | . 1 1 Critical Kills 1 | . 1 . Critical Parts Destroyed 1 | . . 1 Melee Attacks . | . . . Impact . | . . . Slashing . | . . . Piercing . | . . . Sneak Attacks . | . . . Combat Hostiles . | . . . Follow-up Attacks . | . . . Damage Inflicted 1750 | . 465 1285 Guns 1556 | . 465 1091 Cannons 189 | . . 189 Explosions . | . . . Melee . | . . . Ramming 5 | . . 5 Kinetic 724 | . 314 410 Thermal 832 | . 151 681 Explosive . | . . . Electromagnetic 189 | . . 189 Impact . | . . . Slashing . | . . . Piercing . | . . . Highest Corruption . | . . . Average Corruption . | . . . Corruption Purged . | . . . Overload Shots . | . . . Overflow Damage . | . . . Projectiles . | . . . Explosions . | . . . Melee . | . . . Knockbacks . | . . . Impact . | . . . Kinetic . | . . . Secondary . | . . . Self-Inflicted Damage 2 | . . 2 Shots . | . . . Rammed 1 | . . 1 Targets Rammed 1 | . . 1 Kicked . | . . . Crushed . | . . . Highest Temperature 391 | . 108 391 Average Temperature 61 | . 37 74 Received Heat Transfer 366 | . 30 336 Effects 1 | . . 1 Shutdowns 1 | . . 1 Siege Activations . | . . . Robots Corrupted 1 | . . 1 Combat Hostiles 1 | . . 1 Parts Fried 3 | . . 3 Impact Corruptions . | . . . Robots Melted . | . . . Combat Hostiles . | . . . Parts Melted 3 | . 1 2 Heat Transferred 2162 | . 444 1718 Parts Sabotaged . | . . . Parts Stolen . | . . . Parts Stripped . | . . . Power Chain Reactions . | . . . Missiles Intercepted . | . . . Alert | -11 -10 -9 ------- Run | Scr Mat Mat Peak Influence 312 | . 312 275 Initial 131 | . . 131 Average 152 | . 133 171 Maximum Alert Level 1 | . 1 1 Low Security (%) 58 | 100 64 52 Level 1 41 | . 36 47 Level 2 . | . . . Level 3 . | . . . Level 4 . | . . . Level 5 . | . . . High Security . | . . . Max Security . | . . . Squads Dispatched 3 | . 2 1 Investigation . | . . . Extermination . | . . . Reinforcement 3 | . 2 1 Assault . | . . . Garrison . | . . . Intercept . | . . . Construction Impeded . | . . . Haulers Reinforced . | . . . Stealth | -11 -10 -9 --------- Run | Scr Mat Mat Distress Signals 7 | . 3 4 Communications Jammed . | . . . Distress Signals . | . . . Times Spotted 45 | . 15 30 Peak Tracking Total 7 | . 4 7 Tactical Retreats 2 | . . 2 Traps | -11 -10 -9 ------- Run | Scr Mat Mat Traps Triggered . | . . . Indirectly . | . . . Trap Hack Attempts . | . . . Triggered . | . . . Disarmed . | . . . Reprogrammed . | . . . Reused . | . . . Traps Extracted . | . . . Installed . | . . . Triggered . | . . . Machines | -11 -10 -9 ---------- Run | Scr Mat Mat Machines Disabled 1 | . 1 . Max in Single Turn 1 | . 1 . Machines Sabotaged . | . . . Garrisons Compromised . | . . . Overloaded Fab Kills . | . . . Fab Network Shutdowns . | . . . Hacking | -11 -10 -9 --------- Run | Scr Mat Mat Machines Accessed 3 | . . 3 Terminals 3 | . . 3 Fabricators . | . . . Repair Stations . | . . . Recycling Units . | . . . Scanalyzers . | . . . Garrison Access . | . . . Total Hacks 5 | . . 5 Successful 5 | . . 5 Failed . | . . . Catastrophic . | . . . Database Lockouts . | . . . Manual . | . . . Terminals 5 | . . 5 Fabricators . | . . . Repair Stations . | . . . Recycling Units . | . . . Scanalyzers . | . . . Garrison Access . | . . . Terminal Hacks 5 | . . 5 Record 4 | . . 4 Locate Traps 1 | . . 1 Fabricator Hacks . | . . . Repair Station Hacks . | . . . Recycling Unit Hacks . | . . . Scanalyzer . | . . . Garrison Access Hacks . | . . . Unauthorized Hacks . | . . . Terminals . | . . . Fabricators . | . . . Repair Stations . | . . . Recycling Units . | . . . Scanalyzers . | . . . Garrison Access . | . . . Data Cores Recovered . | . . . Used . | . . . Hacking Detections . | . . . Full Trace Events . | . . . Feedback Events . | . . . Feedback Blocked . | . . . Robot Schematics Acquired . | . . . Robots Built . | . . . Matter . | . . . Time . | . . . Total Robot Build Rating . | . . . Part Schematics Acquired . | . . . Parts Built . | . . . Matter . | . . . Time . | . . . Total Part Build Rating . | . . . Parts Repaired . | . . . Time . | . . . Parts Recycled . | . . . Recycled Matter . | . . . Retrieved Matter . | . . . Retrieved Components . | . . . Parts Scanalyzed . | . . . Part Schematics Acquired . | . . . Parts Damaged . | . . . Bothacking | -11 -10 -9 ------------ Run | Scr Mat Mat Used RIF Installer . | . . . Robots Hacked . | . . . Non-combat . | . . . Combat . | . . . Robot Hacks Applied . | . . . Relay Couplers Released . | . . . Robots Rewired . | . . . Allies Hacked . | . . . Hacks Repelled . | . . . Allies | -11 -10 -9 -------- Run | Scr Mat Mat Total Allies . | . . . Largest Group . | . . . Highest-Rated Group . | . . . Highest-Rated Ally . | . . . Total Orders . | . . . Ally Attacks . | . . . Total Damage . | . . . Kills . | . . . Allies Corrupted . | . . . Allies Melted . | . . . Intel | -11 -10 -9 ------- Run | Scr Mat Mat Robot Analysis Total . | . . . Derelict Logs Recovered . | . . . Drone Launches . | . . . Drone Recoveries . | . . . Exploration | -11 -10 -9 ------------- Run | Scr Mat Mat Turns Passed 1035 | 55 275 705 Spaces Moved 406 | 33 104 269 Core 9 | 4 . 5 Treads 397 | 29 104 264 Legs . | . . . Wheels . | . . . Hover . | . . . Flight . | . . . Fastest Speed 50 | 50 160 160 Average Speed 159 | 146 160 160 Slowest Speed 200 | 160 160 200 Overloaded Moves . | . . . Propulsion Burnouts . | . . . Robots Hopped . | . . . Cave-ins Triggered . | . . . Exploration Rate (%) 16 | 3 24 21 Regions Visited 2 Branch Regions . Pre-discovered Areas . | . . . Known Exits Taken . | . . . Unknown Exits Taken 2 | 1 1 . Scrap Searched . | . . . Spaces Dug . | . . . Terrain Destroyed . | . . . Melee . | . . . Projectile . | . . . AOE . | . . . Terrain Rammed . | . . . Walls Destroyed . | . . . Machines Disabled . | . . . Actions | -11 -10 -9 --------- Run | Scr Mat Mat Total 596 | 37 149 410 Wait 61 | . 6 55 Move 404 | 32 103 269 Hop . | . . . Pick Up . | . . . Fast Attach 19 | 5 1 13 Attach . | . . . Detach . | . . . Swap 1 | . . 1 Drop 4 | . . 4 Fire 106 | . 39 67 Melee . | . . . Ram 1 | . . 1 Kick . | . . . Crush . | . . . Escape Stasis . | . . . Rewire . | . . . Trap . | . . . Miscellaneous . | . . . Route ------- -11/Scrapyard -10/Materials -9/Materials (discovered 1 exit: [*Min]) History --------- Turn | Location | Event 3 | -11/Scrapyard | Discovered new exit (range 15) 56 | -11/Scrapyard | Entered Materials 303 | -10/Materials | Build established: Mutant 307 | -10/Materials | Discovered new exit (range 16) 331 | -10/Materials | Entered another Materials area 331 | -9/Materials | Evolved 2 slots: Weapon x2 744 | -9/Materials | Lost 4 parts (1p1n1u1w) 889 | -9/Materials | Discovered new exit (range 12) 1036 | -9/Materials | Self-destructed Last Messages --------------- 00930_ Destroyed Tractor Beam. 00933_ Acquired 10 matter. 00935_ K-01 Serf collects debris. 00958_ Destroyed Lgt. Ion Engine. 00958_ S-10 Pest destroyed. 00961_ K-01 Serf collects debris. 00961_ Acquired 13 matter. 00964_ K-01 Serf collects debris. 00985_ Beam Rifle destroyed. 00987_ G-34 Mercenary destroyed. 00988_ Acquired 31 matter. 00994_ K-01 Serf collects debris. 00994_ Acquired Ion Engine. 00997_ Acquired 10 matter. 00999_ K-01 Serf collects debris. 01014_ Lgt. Treads destroyed. 01029_ Lgt. Armor Plating destroyed. 01031_ Ion Engine destroyed. 01034_ Hvy. Assault Rifle destroyed. 01035_ Slammed into G-34 Mercenary. Map ----- +----------------------------------------------------+ | ????????????????????# %###+###### #??????? | | ????????????????????# # #?## ##??????? | | ????????????????????# # "T" #??# #???????? | | ????????????????????# # #??# #???????? | | ????????????????????# # #??# #???????? | | ????????????????????# # #### #???????? | | ????????????????????# # + #???????? | | ???????????"""""????# ###########+####????? | | ??????????#" |"! ???#####/####????#! #????? | | ????????? #" "##### #?????# """ #????? | | ???????? #?????#] "T" #????? | | ???????? < #?????# #????? | | ???????? !% #####?###########????? | | ??????????# #####= %= ?????????? | | ???????????######?????#=#############????????????? | | ??????????????????????#%#????????????????????????? | | ??????????????????????#=#????????????????????????? | | ??????????????????????# #????????????????????????? | | ??????????????????????# #????????????????????????? | | ??????????????????????#=#????????????????????????? | | ??????????????????????#%###########??????????????? | | ??????????????????????# # #??????????????? | | ??????????????????????# # #??????????????? | | ??????????????????????# # #??????????????? | | ????????????###+####### # !* #??????????????? | | ???????? ! #@! #??????????????? | | ???????? ssgg #??????????????? | | ???????? /// #s #??????????????? | | ?????????##### /// k## #??????????????? | | ?????????????# // ?###########??????????????? | | ?????????????# ??????????????????????????? | | ?????????????# ??????????????????????????? | | ?????????????# ??????????????????????????? | | ?????????????# ??????????????????????????? | | ?????????????# ??????????????????????????? | | ?????????????+ #### ??????????????????????????? | | ?????????????# a???# ???????????????????????????? | | ?????????????# ????# ???????????????????????????? | | ????????????????????# ???????????????????????????? | | ????????????????????# ???????????????????????????? | | ?????????????????????????????????????????????????? | | ?????????????????????????????????????????????????? | | ?????????????????????????????????????????????????? | | ?????????????????????????????????????????????????? | | ?????????????????????????????????????????????????? | | ?????????????????????????????????????????????????? | | ?????????????????????????????????????????????????? | | ?????????????????????????????????????????????????? | | ?????????????????????????????????????????????????? | | ?????????????????????????????????????????????????? | +----------------------------------------------------+ Best States ------------- Heat Dissipation 42 Coolant Potential 50 Energy Generation 10 Energy Capacity 250 Matter Stores 300 Matter Capacity 300 Sight Range 16 Robot Scan Range 10 Terrain Scan Density 10 Armor Coverage 150 Evasion (%) 40 Recoil Reduction 2 Item Schematics ----------------- None Robot Schematics ------------------ None Fabricated ------------ Nothing Alien Tech Used ----------------- None Achievements -------------- None Challenges ------------ None Game ------ Seed FlyingSegregatorShotgun Manual? 0 Play Time 00:10:32 Cumulative 53.0 hours Start 2021.05.06 @ 14:09:48 End 2021.05.06 @ 14:25:23 Sessions 1 Manual Loads 0 Difficulty Rogue Special Mode None Game No. 116 Rogue 116 Adventurer 0 Explorer 0 Win Type - Total 0 Types 0/0/0/0/0/0/0/0/0 Lore% 24 Gallery% 30 Achievement% 26 Wizard Run 0 Options --------- ASCII 0 Keyboard 0 Movement Numpad Keybinds 0 Fullscreen 1 Font 12/Smallcaps Map View 83x54 Tactical HUD 1 Map Filters NONE Filters NONE Steam 1 RUN: 8be9ae8d-2728-444a-a90f-08905b22e449